Workbook

Sheet Cover
B3: Excel + VBA
B4: Stochastik
B7: Kapitel | C7: 7
B8: Thema | C8: Statistische Kenngrößen
B10: Inhalt | C10: Statistische Funktionen
B18: Version | C18: 1.0
B19: Autor | C19: Harald Nahrstedt
B20: Letzte Bearbeitung | C20: 2021-10-15
B23: Springer Vieweg Verlag

Sheet MITTELWERT
A1: 5 | B1: 4 | C1: 6 | D1: 3 | E1: 4 | G1: Mittelwert: | H1: =AVERAGE(MittelMatrix) -> 9.32
A2: 4 | B2: 6 | C2: 1 | D2: 2 | E2: 6
A3: 12 | B3: 5 | C3: 14 | D3: 11 | E3: 15
A4: 7 | B4: 9 | C4: 8 | D4: 21 | E4: 22
A5: 14 | B5: 18 | C5: 11 | D5: 5 | E5: 20

Sheet MITTELWERTWENNS
A1: 5 | B1: 4 | C1: 6 | D1: 3 | E1: 4 | G1: Untergrenze | H1: 9 | I1: >=
A2: 4 | B2: 6 | C2: 1 | D2: 2 | E2: 6 | G2: Obergrenze | H2: 18 | I2: <=
A3: 12 | B3: 5 | C3: 14 | D3: 11 | E3: 15 | G3: Mittelwert | H3: =AVERAGEIFS(WennsMatrix,WennsMatrix,UOp&UGrenze,WennsMatrix,OOp&OGrenze) -> 13
A4: 7 | B4: 9 | C4: 8 | D4: 21 | E4: 22
A5: 14 | B5: 18 | C5: 11 | D5: 5 | E5: 20

Sheet GewMittelAbs
A1: x = | B1: 1 | C1: 2 | D1: 3 | E1: 4 | F1: 5 | G1: 6 | I1: Gew.Mittel | J1: =SUMPRODUCT(Noten,Studenten)/SUM(Studenten) -> 3.125
A2: H = | B2: 5 | C2: 12 | D2: 18 | E2: 14 | F2: 6 | G2: 1

Sheet GewMittelRel
A1: x = | B1: 1 | C1: 2 | D1: 3 | E1: 4 | F1: 5 | G1: 6 | I1: Gew.Mittel | J1: =SUMPRODUCT(Notenschlüssel,Notenverteilung) -> 3.45
A2: h = | B2: 0.1 | C2: 0.2 | D2: 0.2 | E2: 0.25 | F2: 0.15 | G2: 0.1

Sheet Dichte
A1: 0 | B1: =-0.08*A1+0.4 -> 0.4
A2: 1 | B2: 0.32
A3: 2 | B3: 0.24
A4: 3 | B4: 0.16
A5: 4 | B5: 0.08
A6: 5 | B6: 0

Sheet GEOMITTEL
A1: Jahr | B1: 1 | C1: 2 | D1: 3 | E1: 4 | F1: 5 | G1: 6 | H1: 7 | J1: Steigerungsrate | K1: =GEOMEAN(Steigerung) -> 1.03800673
A2: Steigerung in % | B2: 9 | C2: 3 | D2: 6 | E2: 5 | F2: -3 | G2: 3 | H2: 4
A3: Dezimalanteil | B3: 1.09 | C3: 1.03 | D3: 1.06 | E3: 1.05 | F3: 0.97 | G3: 1.03 | H3: 1.04

Sheet GewGeoMittel
A1: n | B1: 10 | C1: 25 | D1: 5 | E1: 8 | F1: 32 | G1: 14 | H1: 28 | J1: Schnitt | K1: =SUMPRODUCT(Schnitt,Mittel) -> 
A2: x | B2: 2.35 | C2: 2.37 | D2: 3.11 | E2: 2.43 | F2: 2.41 | G2: 2.39 | H2: 2.42
A3: h | B3: =Anzahl/SUM(Anzahl) -> 0.08196721311 | C3: 0.2049180328 | D3: 0.04098360656 | E3: 0.06557377049 | F3: 0.262295082 | G3: 0.1147540984 | H3: 0.2295081967 | I3: =SUM(Mittel) -> 1

Sheet HARMITTEL
A1: Tag | B1: 1 | C1: 2 | D1: 3 | E1: 4 | F1: 5 | H1: Mittel | I1: =HARMEAN(Geschw) -> 89.75730098
A2: Strecke in km | B2: 180 | C2: 210 | D2: 240 | E2: 160 | F2: 190
A3: Zeit in Std. | B3: 2.11 | C3: 2.31 | D3: 2.61 | E3: 1.87 | F3: 1.98
A4: Geschw | B4: =Strecke/Zeit -> 85.30805687 | C4: =Strecke/Zeit -> 90.90909091 | D4: =Strecke/Zeit -> 91.95402299 | E4: =Strecke/Zeit -> 85.56149733 | F4: =Strecke/Zeit -> 95.95959596

Sheet GewHarMittel
A1: Tag | B1: 1 | C1: 2 | D1: 3 | E1: 4 | F1: 5 | H1: Mittel | I1: 90.07352941
A2: Strecke in km | B2: 180 | C2: 210 | D2: 240 | E2: 160 | F2: 190 | H2: Summe | I2: =SUM(Strecke1) -> 980
A3: Zeit in Std. | B3: 2.11 | C3: 2.31 | D3: 2.61 | E3: 1.87 | F3: 1.98 | H3: Summe | I3: =SUM(Zeit1) -> 10.88
A4: Geschw | B4: =Strecke1/Zeit1 -> 85.30805687 | C4: =Strecke1/Zeit1 -> 90.90909091 | D4: =Strecke1/Zeit1 -> 91.95402299 | E4: =Strecke1/Zeit1 -> 85.56149733 | F4: =Strecke1/Zeit1 -> 95.95959596

Sheet QUADRATESUMME
A1: Masse in t | B1: 145 | C1: 163 | D1: 176 | E1: 138 | F1: 198 | G1: 173 | H1: 212 | I1: 156 | J1: 145 | K1: 221
A2: Abweichung | B2: =Masse-Mittelwert -> -27.7 | C2: -9.7 | D2: 3.3 | E2: -34.7 | F2: 25.3 | G2: 0.3 | H2: 39.3 | I2: -16.7 | J2: -27.7 | K2: 48.3
A4: Mittelwert | B4: =AVERAGE(Masse) -> 172.7
A5: quadr. Mittel | B5: =SQRT(SUMSQ(Abweichung)/(COUNT(Abweichung)-1)) -> 29.13588852

Sheet RMS
A1: Winkel in Grd | B1: 0 | C1: 18 | D1: 36 | E1: 54 | F1: 72 | G1: 90 | H1: 108 | I1: 126 | J1: 144 | K1: 162 | L1: 180
A2: Spannung in V | B2: 0 | C2: 6.2 | D2: 11.8 | E2: 16.2 | F2: 19 | G2: 20 | H2: 19 | I2: 16.2 | J2: 11.8 | K2: 6.2 | L2: 0

Sheet GESTUTZTMITTEL
A1: Vormittags | B1: 159 | C1: 218 | D1: 199 | E1: 220 | F1: 429 | G1: 338 | H1: 174
A2: Mittags | B2: 89 | C2: 19 | D2: 248 | E2: 169 | F2: 299
A3: Nachmittags | B3: 149 | C3: 257 | D3: 948 | E3: 139 | F3: 219 | G3: 412 | H3: 187 | I3: 209
A5: arithm.Mittel | B5: =AVERAGE(Verkäufe) -> 254.05
A6: getrim.Mittel | B6: =TRIMMEAN(Verkäufe,10%) -> 228.5555556

Sheet Konfidenzintervall
A1: Alpha | B1: 0.05 | F1: Konfidenzintervalle:
A2: StAbw | B2: 4.2 | D2: Grundgesamtheit | F2: von | G2: bis
A3: Umfang | B3: 100 | D3: normalverteilt | E3: =_xlfn.CONFIDENCE.NORM(Alpha,StAbw,Umfang) -> 0.8231848735 | F3: =Schnitt-E3 -> 51.57681513 | G3: =Schnitt+E3 -> 53.22318487
A4: Durchschnitt | B4: 52.4 | D4: t-verteilt | E4: =_xlfn.CONFIDENCE.T(Alpha,StAbw,Umfang) -> 0.8333711197 | F4: =Schnitt-E4 -> 51.56662888 | G4: =Schnitt+E4 -> 53.23337112

Sheet MODUS.EINF
A1: 6 | B1: 5 | C1: 3 | D1: 2 | F1: Modus | G1: =_xlfn.MODE.SNGL(NotenMatrix) -> 2
A2: 4 | B2: 2 | C2: 4 | D2: 2
A3: 2 | B3: 6 | C3: 5 | D3: 1
A4: 4 | B4: 7 | C4: 4 | D4: 7
A5: 2 | B5: 5 | C5: 6 | D5: 5

Sheet MODUS.VIELF
A1: 5 | B1: 4 | C1: 6 | D1: 3 | E1: 4 | G1: =_xlfn.MODE.MULT(RegalMatrix) -> 5
A2: 4 | B2: 6 | C2: 1 | D2: 2 | E2: 6 | G2: 4
A3: 12 | B3: 5 | C3: 14 | D3: 11 | E3: 15 | G3: 6
A4: 7 | B4: 9 | C4: 8 | D4: 21 | E4: 22
A5: 14 | B5: 18 | C5: 11 | D5: 5 | E5: 20

Sheet Rang
A1: Mat.Nr. | B1: A-12-B-45 | C1: C-45-A-13 | D1: F-21-G-33 | E1: K-01-H-03 | F1: J-34-L-17 | G1: M-52-K-37 | H1: B-22-L-36 | I1: H-07-H-08 | J1: A-55-S-13
A2: Punkte | B2: 56 | C2: 75 | D2: 92 | E2: 86 | F2: 75 | G2: 87 | H2: 90 | I2: 45 | J2: 72
A3: Rang | B3: =_xlfn.RANK.EQ(B2,TestPunkte,0) -> 8 | C3: 5 | D3: 1 | E3: 4 | F3: 5 | G3: 3 | H3: 2 | I3: 9 | J3: 7
A5: Range | B5: =MAX(TestPunkte)-MIN(TestPunkte) -> 47

Sheet MEDIAN
A1: Alter | B1: 23 | C1: 45 | D1: 43 | E1: 56 | F1: 38 | G1: 35 | H1: 26 | I1: 27 | J1: 41 | K1: 45 | L1: 22 | M1: 51 | N1: 35 | O1: 68 | P1: 72
A2: Median | B2: =MEDIAN(Alter) -> 41

Sheet StetMedian
A1: x | B1: F(x) | C1: f(x)
A2: 0 | B2: =1-EXP(-A2) -> 0 | C2: =EXP(-A2) -> 1
A3: 1 | B3: 0.6321205588 | C3: =EXP(-A3) -> 0.3678794412
A4: 2 | B4: 0.8646647168 | C4: 0.1353352832
A5: 3 | B5: 0.9502129316 | C5: 0.04978706837
A6: 4 | B6: 0.9816843611 | C6: 0.01831563889
A7: 5 | B7: 0.993262053 | C7: 0.006737946999
A8: 6 | B8: 0.9975212478 | C8: 0.002478752177

Sheet QUANTILE
A1: Alter | B1: 23 | C1: 45 | D1: 43 | E1: 56 | F1: 38 | G1: 35 | H1: 26 | I1: 27 | J1: 41 | K1: 45 | L1: 22 | M1: 51 | N1: 35 | O1: 68 | P1: 72
A2: Quantile 25% | B2: =_xlfn.PERCENTILE.EXC(Alter,0.25) -> 27
A3: Quantile 50% | B3: =_xlfn.PERCENTILE.EXC(Alter,0.5) -> 41
A4: Quantile 75% | B4: =_xlfn.PERCENTILE.EXC(Alter,0.75) -> 51
